fUSD/lending_fUSD_20240626
["ID","MTS","AMOUNT","RATE_DAILY","PERIOD"]
[330457363,1719427846372,-15532.74296992,0.00014,2]
[330457364,1719427846384,-1829.7458757,0.00014,2]
[330457365,1719427846396,-445.62000001,0.00014,2]
[330457366,1719427846408,-1800.44920986,0.00014,2]
[330457367,1719427846635,-477.47355398,0.00014,2]
[330457370,1719427846647,-610.84832,0.00014,2]
[330457372,1719427846660,-1504.37069116,0.00014,2]
[330457374,1719427846671,-883.07000001,0.00014,2]
[330457375,1719427846683,-843.8505457,0.00014,2]
[330457376,1719427846694,-5987.01390136,0.00014,2]
[330457377,1719427846707,-3074.65,0.00014,2]
[330457385,1719429032507,-306.87258158,0.00011099,2]
[330457386,1719429032517,-568.28549116,0.00012346,2]
[330457387,1719429032530,-302.3445,0.00012346,2]
[330457388,1719429032541,-497.39288357,0.00012346,2]
[330457390,1719429032997,-268.07010932,0.00012346,2]
[330457392,1719429033009,-1031.62934149,0.00012346,2]
[330457394,1719429033021,-1283.33424322,0.00012346,2]
[330457397,1719429039219,-2558.26915527,0.00012346,2]
[330457399,1719429039230,-6509.32572403,0.00012346,2]
[330457400,1719429039241,-438.16706068,0.00012355,2]
[330457401,1719429039251,-10104.48667685,0.00013713,2]
[330457402,1719429039262,-317.05011163,0.00013713,2]
[330457403,1719429039275,-710.24089395,0.00013713,2]
[330457404,1719429039287,-2269.41545763,0.00013713,2]
[330457405,1719429039298,-712.25,0.00013713,2]
[330457406,1719429039310,-609.4929415,0.00013713,2]
[330457407,1719429039325,-258.37918026,0.00013859,2]
[330457408,1719429039336,-277.43817185,0.00013899,2]
[330457409,1719429039345,-17349.1901,0.000139,2]
[330457410,1719429039355,-1000.0,0.000139,2]
[330457411,1719429039368,-182.08348635,0.000139,2]
[330457412,1719429039378,-709.95054593,0.000139,2]
[330457413,1719429039388,-152.53690019,0.000139,2]
[330457414,1719429039399,-1054.20873751,0.00013917,2]
[330457415,1719429039410,-412.37787148,0.00013984,2]
[330457416,1719429039419,-277.24952999,0.00013998,2]
[330457417,1719429039429,-163.50065627,0.00013998,2]
[330457418,1719429039440,-317.35168101,0.00013999,2]
[330457419,1719429039450,-2410.29126692,0.00014,2]
[330457420,1719429039462,-17848.54770864,0.00014,2]
[330457421,1719429039474,-1751.43,0.00014,2]
[330457422,1719429039487,-1642.6789177,0.00014,2]
[330457423,1719429039499,-673.38953007,0.00014,2]
[330457424,1719429039510,-383.65,0.00014,2]
[330457425,1719429039522,-261.9,0.00014,2]
[330457426,1719429039533,-849.33,0.00014,2]
[330457427,1719429039545,-325.82,0.00014,2]
[330457428,1719429039557,-2931.89899369,0.00014,2]
[330457429,1719429039569,-1775.18020249,0.00014,2]
[330457430,1719429039581,-798.74931413,0.00014,2]
[330457431,1719429039593,-8763.3401676,0.00014,2]
[330457432,1719429039605,-30450.0,0.00014,2]
[330457452,1719429041004,-465.50057494,0.00014,2]
[330457453,1719429041017,-3863.4679224,0.00014,2]
[330457454,1719429041028,-5216.0,0.00014,2]
[330457455,1719429041040,-4216.37536217,0.00014,2]
[330457474,1719429041272,-24690.2441784,0.00014,2]
[330457476,1719429041284,-19091.61885104,0.00014,2]
[330457478,1719429041295,-450.89923207,0.00014,2]
[330457491,1719429041420,-4832.22556236,0.00014,2]
[330457493,1719429041432,-17756.86832099,0.00014,2]
[330457496,1719429041444,-546.03679926,0.00014,2]
[330457498,1719429041455,-3255.0,0.00014,2]
[330457529,1719429043417,-2129.66230494,0.00014,2]
[330457576,1719429043943,-17365.33401791,0.00014,2]
[330457577,1719429043955,-3924.53627189,0.00014,2]
[330457578,1719429043966,-635.69802414,0.00014,2]
[330457579,1719429043977,-782.56924213,0.00014,2]
[330457580,1719429043988,-4303.63783665,0.00014,2]
[330457581,1719429044000,-1016.1,0.00014,2]
[330457582,1719429044010,-300.08603421,0.00014,2]
[330457583,1719429044022,-405.5664405,0.00014,2]
[330457584,1719429044034,-1126.83701724,0.00014,2]
[330457585,1719429044045,-1370.91809665,0.00014,2]
[330457586,1719429044056,-685.50165271,0.00014,2]
[330457587,1719429044067,-6517.10792,0.00014,2]
[330457588,1719429044082,-1405.2,0.00014,2]
[330457589,1719429044094,-10750.945965,0.00014,2]
[330457590,1719429044105,-3641.67389993,0.00014,2]
[330457591,1719429044117,-764.825,0.00014,2]
[330457592,1719429044128,-657.39973408,0.00014,2]
[330457593,1719429044139,-26821.11545556,0.00014,2]
[330457594,1719429044150,-719.07075033,0.00014,2]
[330457598,1719429046669,-1150.52,0.00014,2]
[330457602,1719429047271,-608.93,0.00014,2]
[330457606,1719429047282,-281.08583612,0.00014,2]
[330457607,1719429047293,-93058.89741998,0.00014,2]
[330457608,1719429047302,-155.0,0.00014,2]
[330457609,1719429047312,-200.16170887,0.00014,2]
[330457610,1719429047321,-263.28070068,0.00014,2]
[330457611,1719429047335,-450.0,0.00014,2]
[330457612,1719429047346,-226.97511983,0.00014856,2]
[330457613,1719429047355,-709.95054589,0.00015043,2]
[330457614,1719429047366,-250.0,0.00015973,2]
[330457615,1719429047376,-1000.0,0.00016056,2]
[330457616,1719429047386,-2053.02,0.00016068,2]
[330457617,1719429047396,-709.95054589,0.00016186,2]
[330457618,1719429047406,-753.29166589,0.00016399,2]
[330457619,1719429047417,-1486.0,0.000164,2]
[330457620,1719429047427,-496.0,0.000165,2]
[330457621,1719429047436,-152.53690019,0.00016567,2]
[330457622,1719429047445,-709.95054589,0.00017329,2]
[330457623,1719429047454,-342.09161863,0.000176,2]
[330457624,1719429047464,-525.88970109,0.000177,2]
[330457625,1719429047473,-622.04958902,0.00017807,2]
[330457626,1719429047482,-647.07170086,0.00017899,2]
[330457627,1719429047492,-283.87820514,0.000179,2]
[330457628,1719429047501,-1000.0,0.00018063,2]
[330457629,1719429047510,-6416.0330445,0.00018344,2]
[330457630,1719429047519,-709.95054589,0.00018471,2]
[330457631,1719429047529,-220.15,0.00018904,2]
[330457632,1719429047538,-167.97127447,0.0001899,2]
[330457633,1719429047547,-16953.80234164,0.00019,2]
[330457634,1719429047558,-660.16000002,0.00019,2]
[330457635,1719429047569,-15222.0,0.00019,2]
[330457636,1719429047580,-29608.72670689,0.00019,2]
[330457637,1719429047591,-26046.87249875,0.00019,2]
[330457638,1719429047602,-9411.26014652,0.00019,2]
[330457639,1719429047613,-25574.52361261,0.00019,2]
[330457641,1719430234070,-226.97511983,0.00012344,2]
[330457643,1719430234081,-294.68098322,0.00012355,2]
[330457644,1719430234092,-1000.0,0.000139,2]
[330457645,1719430234102,-684.3304205,0.00016969,2]
[330457646,1719430234112,-2225.2837,0.00018007,2]
[330457647,1719430234121,-1000.0,0.0001804,2]
[330457649,1719430234132,-10373.0,0.00018107,2]
[330457650,1719430234142,-787.94090939,0.0001825,2]
[330457651,1719430234152,-19044.0,0.00018251,2]
[330457652,1719430234162,-2128.38,0.00018423,2]
[330457654,1719430234171,-250.0,0.00018441,2]
[330457655,1719430234181,-208.76,0.00018575,2]
[330457656,1719430234191,-415.07899166,0.0001873,2]
[330457657,1719430234200,-4320.9292,0.000189,2]
[330457658,1719430234210,-500.0,0.000189,2]
[330457659,1719430234220,-1015.9578,0.000189,2]
[330457660,1719430234229,-162.64668172,0.000189,2]
[330457661,1719430234239,-288.66384109,0.000189,2]
[330457662,1719430234249,-331.63359046,0.000189,2]
[330457663,1719430234259,-226.74750375,0.000189,2]
[330457664,1719430234268,-889.0,0.00019,2]
[330457665,1719430234278,-293621.5919395,0.00019,2]
[330457669,1719430234892,-396.51876854,0.00019,2]
[330457671,1719430234904,-3039.95,0.00019,2]
[330457700,1719430241092,-787.94090939,0.00018106,2]
[330457701,1719430241102,-6.76222492,0.0001842,2]
[330457702,1719430241115,-449.3685477,0.0001842,2]
[330457703,1719430241128,-9.83922738,0.0001842,2]
[330457704,1719430241137,-247.15829411,0.0001899,2]
[330457705,1719430241147,-247.15829411,0.0001899,2]
[330457706,1719430241158,-247.15829411,0.0001899,2]
[330457707,1719430241169,-247.15829411,0.0001899,2]
[330457708,1719430241179,-247.15829411,0.0001899,2]
[330457709,1719430241190,-247.15829411,0.0001899,2]
[330457710,1719430241200,-806.0,0.00019,2]
[330457711,1719430241212,-68171.7993699,0.00019,2]
[330457712,1719430241835,-247.15829411,0.0001899,2]
[330457713,1719430241845,-247.15829411,0.0001899,2]
[330457714,1719430241855,-247.15829411,0.0001899,2]
[330457715,1719430241864,-4536.44368643,0.00019,2]
[330457716,1719430241876,-1225.4517695,0.00019,2]
[330457717,1719430241888,-3774.96415321,0.00019,2]
[330457748,1719430244322,-247.15829411,0.0001899,2]
[330457750,1719430244333,-247.15829411,0.0001899,2]
[330457752,1719430244343,-247.15829411,0.0001899,2]
[330457754,1719430244354,-247.15829411,0.0001899,2]
[330457756,1719430244364,-247.15829411,0.0001899,2]
[330457757,1719430244374,-247.15829411,0.0001899,2]
[330457758,1719430244384,-247.15829411,0.0001899,2]
[330457759,1719430244394,-565.50316753,0.00019,2]
[330457760,1719430244406,-432.0,0.00019,2]
[330457761,1719430244417,-3268.5741,0.00019,2]
[330457762,1719430244933,-247.15829411,0.0001899,2]
[330457763,1719430244944,-62.84170589,0.0001899,2]
[330457764,1719430244957,-184.31658822,0.0001899,2]
[330457765,1719430244968,-247.15829411,0.0001899,2]
[330457766,1719430244978,-31.92325208,0.00019,2]
[330457787,1719430247921,-247.15829411,0.0001899,2]
[330457788,1719430247932,-240.0966503,0.0001899,2]
[330457789,1719430247944,-7.06164381,0.0001899,2]
[330457790,1719430247955,-247.15829411,0.0001899,2]
[330457791,1719430247965,-247.15829411,0.0001899,2]
[330457792,1719430247976,-247.15829411,0.0001899,2]
[330457793,1719430247986,-28.84347386,0.0001899,2]
[330457794,1719430247998,-218.31482025,0.0001899,2]
[330457795,1719430248008,-247.15829411,0.0001899,2]
[330457796,1719430248018,-247.15829411,0.0001899,2]
[330457797,1719430248029,-52.83755484,0.0001899,2]
[330457798,1719430248042,-194.32073927,0.0001899,2]
[330457799,1719430248053,-745.56325473,0.00019,2]
[330457800,1719430248065,-44158.79664052,0.00019,2]
[330457801,1719430248078,-2108.9075643,0.00019,2]
[330457820,1719431431777,-150.0,0.00011199,2]
[330457821,1719431431788,-300.0,0.00011199,2]
[330457822,1719431431797,-2961.11018416,0.000112,2]
[330457823,1719431431818,-19076.91869426,0.000112,2]
[330457825,1719431431828,-210.0,0.00012319,2]
[330457826,1719431431839,-293.0,0.00013551,2]
[330457828,1719431431849,-220.15,0.0001389,3]
[330457830,1719431431865,-315.6806,0.000139,2]
[330457831,1719431431875,-155.0,0.000139,2]
[330457832,1719431431886,-3404.5372,0.000139,2]
[330457833,1719431431896,-602.7287,0.000139,2]
[330457834,1719431431905,-5126.0387,0.000139,2]
[330457835,1719431431915,-177.5368,0.000139,2]
[330457836,1719431431925,-17390.7173,0.000139,2]
[330457837,1719431431936,-21779.65550004,0.00013904,2]
[330457838,1719431431946,-203.2068479,0.00013904,2]
[330457839,1719431431957,-331.63359044,0.00013904,2]
[330457840,1719431431967,-703.00771562,0.00013904,2]
[330457841,1719431431977,-201.6567933,0.0001399,2]
[330457842,1719431431987,-283192.11474478,0.00014,2]
[330457843,1719431432015,-40482.97758371,0.00014,2]
[330457844,1719431432027,-633158.4006639,0.00014,2]
[330457845,1719431432038,-1362.82183491,0.00014004,2]
[330457846,1719431432048,-266.32,0.00014104,2]
[330457847,1719431432059,-1362.82183485,0.00014722,2]
[330457848,1719431432069,-557.22,0.00014722,2]
[330457849,1719431432079,-1164.2,0.00014722,2]
[330457850,1719431432089,-21779.65549997,0.00014792,2]
[330457851,1719431432100,-220.15,0.00014904,4]
[330457852,1719431432111,-25672.96560173,0.00015,2]
[330457853,1719431432121,-703.00771559,0.00015046,2]
[330457855,1719431432133,-1362.82183485,0.0001544,2]
[330457857,1719431432147,-8249.87,0.00015607,2]
[330457858,1719431432156,-173.68,0.0001564,2]
[330457859,1719431432166,-21779.65549997,0.00015681,2]
[330457860,1719431432177,-250.0,0.00015691,2]
[330457861,1719431432188,-220.15,0.0001589,5]
[330457862,1719431432198,-208.76,0.00015955,2]
[330457863,1719431432208,-1000.0,0.00016,2]
[330457864,1719431432220,-1000.0,0.00016,2]
[330457865,1719431432230,-151.47,0.00016026,2]
[330457866,1719431432240,-1362.82183485,0.00016157,2]
[330457867,1719431432250,-703.00771559,0.00016189,2]
[330457868,1719431432260,-471.0,0.000163,2]
[330457869,1719431432270,-21779.65549997,0.00016569,2]
[330457870,1719431432280,-1362.82183485,0.00016875,2]
[330457871,1719431432289,-305.5,0.00016904,6]
[330457872,1719431432299,-557.22,0.00016986,2]
[330457873,1719431432309,-1604.93698379,0.00016999,2]
[330457874,1719431432320,-1007.0,0.00017,2]
[330457875,1719431432329,-1000.0,0.00017,2]
[330457876,1719431432340,-1015.0,0.00017,3]
[330457877,1719431432349,-21779.65549997,0.00017458,2]
[330457878,1719431432359,-1362.82183485,0.00017593,2]
[330457879,1719431432368,-1000.0,0.00017742,2]
[330457880,1719431432383,-689.57,0.00017808,2]
[330457881,1719431432393,-1000.0,0.00018,3]
[330457882,1719431432404,-173.22,0.00018082,2]
[330457883,1719431432413,-1362.82183485,0.00018311,2]
[330457884,1719431432423,-21779.65549997,0.00018346,2]
[330457885,1719431432434,-3391.35870222,0.00018479,2]
[330457886,1719431432443,-151.0,0.00018533,2]
[330457887,1719431432453,-151.0,0.00018533,2]
[330457888,1719431432465,-151.0,0.00018533,2]
[330457889,1719431432476,-564.172076,0.00018533,2]
[330457890,1719431432487,-564.172076,0.00018533,2]
[330457891,1719431432498,-151.0,0.00018533,2]
[330457892,1719431432508,-151.0,0.00018533,2]
[330457893,1719431432519,-151.0,0.00018533,2]
[330457894,1719431432530,-151.0,0.00018533,2]
[330457895,1719431432541,-296.301251,0.00018533,2]
[330457896,1719431432553,-1466.678075,0.00018533,2]
[330457897,1719431432564,-1466.678075,0.00018533,2]
[330457898,1719431432576,-151.0,0.00018533,2]
[330457899,1719431432585,-151.0,0.00018533,2]
[330457900,1719431432596,-181.462798,0.00018533,2]
[330457901,1719431432608,-181.462798,0.00018533,2]
[330457902,1719431432618,-151.0,0.00018533,2]
[330457903,1719431432629,-152.479974,0.00018533,2]
[330457904,1719431432639,-151.0,0.00018533,2]
[330457905,1719431432649,-151.0,0.00018533,2]
[330457906,1719431432659,-151.0,0.00018533,2]
[330457907,1719431432670,-151.0,0.00018533,2]
[330457908,1719431432679,-194.358715,0.00018533,2]
[330457909,1719431432690,-194.358715,0.00018533,2]
[330457910,1719431432700,-151.0,0.00018533,2]
[330457911,1719431432711,-151.0,0.00018533,2]
[330457912,1719431432722,-151.0,0.00018533,2]
[330457913,1719431432732,-156.100432,0.00018533,2]
[330457914,1719431432743,-1100.423532,0.00018533,2]
[330457915,1719431432753,-1100.423532,0.00018533,2]
[330457916,1719431432763,-170.531052,0.00018533,2]
[330457917,1719431432773,-1100.423532,0.00018533,2]
[330457918,1719431432784,-170.531052,0.00018533,2]
[330457919,1719431432794,-1100.423532,0.00018533,2]
[330457920,1719431432804,-170.531052,0.00018533,2]
[330457921,1719431432814,-170.531052,0.00018533,2]
[330457922,1719431432824,-151.0,0.00018533,2]
[330457923,1719431432834,-151.0,0.00018533,2]
[330457924,1719431432845,-151.0,0.00018533,2]
[330457925,1719431432855,-151.0,0.00018533,2]
[330457926,1719431432865,-574.212934,0.00018533,2]
[330457927,1719431432875,-574.212934,0.00018533,2]
[330457928,1719431432884,-574.212934,0.00018533,2]
[330457929,1719431432894,-574.212934,0.00018533,2]
[330457930,1719431432904,-29999.99,0.00018533,2]
[330457931,1719431432914,-29206.72,0.00018533,2]
[330457932,1719431432925,-6243.73,0.00018533,2]
[330457933,1719431432935,-10619.76,0.00018533,2]
[330457934,1719431432946,-180.15111946,0.00018567,2]
[330457935,1719431432956,-6220.54215746,0.00018567,2]
[330457936,1719431432966,-787.94090939,0.00018567,2]
[330457937,1719431432977,-296.61411446,0.00018567,2]
[330457938,1719431432986,-525.88970109,0.00018567,2]
[330457939,1719431432997,-155.0,0.00018567,2]
[330457940,1719431433007,-155.29090818,0.00018567,2]
[330457941,1719431433017,-151.0,0.00018568,2]
[330457942,1719431433026,-151.0,0.00018568,2]
[330457943,1719431433036,-151.0,0.00018568,2]
[330457944,1719431433046,-564.172076,0.00018568,2]
[330457945,1719431433056,-564.172076,0.00018568,2]
[330457946,1719431433065,-151.0,0.00018568,2]
[330457947,1719431433075,-151.0,0.00018568,2]
[330457948,1719431433085,-206.439814,0.00018568,2]
[330457949,1719431433094,-151.0,0.00018568,2]
[330457950,1719431433105,-1466.678075,0.00018568,2]
[330457951,1719431433115,-1466.678075,0.00018568,2]
[330457952,1719431433125,-151.0,0.00018568,2]
[330457953,1719431433140,-151.0,0.00018568,2]
[330457954,1719431433151,-181.462798,0.00018568,2]
[330457955,1719431433161,-181.462798,0.00018568,2]
[330457956,1719431433170,-151.0,0.00018568,2]
[330457957,1719431433183,-151.0,0.00018568,2]
[330457958,1719431433193,-157.526113,0.00018568,2]
[330457959,1719431433202,-151.0,0.00018568,2]
[330457960,1719431433213,-194.358715,0.00018568,2]
[330457961,1719431433223,-194.358715,0.00018568,2]
[330457962,1719431433232,-151.0,0.00018568,2]
[330457963,1719431433243,-151.0,0.00018568,2]
[330457964,1719431433252,-151.0,0.00018568,2]
[330457965,1719431433262,-151.0,0.00018568,2]
[330457966,1719431433272,-151.0,0.00018568,2]
[330457967,1719431433282,-151.0,0.00018568,2]
[330457968,1719431433291,-152.13431,0.00018568,2]
[330457969,1719431433301,-593.105953,0.00018568,2]
[330457970,1719431433312,-229.860675,0.00018568,2]
[330457971,1719431433322,-593.105953,0.00018568,2]
[330457972,1719431433332,-151.0,0.00018568,2]
[330457973,1719431433341,-229.860675,0.00018568,2]
[330457974,1719431433351,-151.0,0.00018568,2]
[330457975,1719431433361,-151.0,0.00018568,2]
[330457976,1719431433371,-151.0,0.00018568,2]
[330457977,1719431433380,-151.0,0.00018568,2]
[330457978,1719431433390,-156.223607,0.00018568,2]
[330457979,1719431433401,-156.223607,0.00018568,2]
[330457980,1719431433410,-184.153135,0.00018568,2]
[330457981,1719431433420,-287.777515,0.00018568,2]
[330457982,1719431433430,-184.153135,0.00018568,2]
[330457983,1719431433440,-287.777515,0.00018568,2]
[330457984,1719431433449,-481.944486,0.00018568,2]
[330457985,1719431433459,-218.910082,0.00018568,2]
[330457986,1719431433469,-481.944486,0.00018568,2]
[330457987,1719431433479,-215.280864,0.00018568,2]
[330457988,1719431433488,-2087.277572,0.00018568,2]
[330457989,1719431433498,-151.0,0.00018568,2]
[330457990,1719431433507,-2087.277572,0.00018568,2]
[330457991,1719431433517,-250.95251,0.00018568,2]
[330457992,1719431433527,-250.95251,0.00018568,2]
[330457993,1719431433537,-151.0,0.00018568,2]
[330457994,1719431433547,-151.0,0.00018568,2]
[330457995,1719431433558,-151.0,0.00018568,2]
[330457996,1719431433567,-168.226083,0.00018568,2]
[330457997,1719431433577,-160.60699121,0.00018699,2]
[330457998,1719431433586,-151.0,0.00018799,2]
[330457999,1719431433596,-1100.423532,0.00018799,2]
[330458000,1719431433606,-170.531052,0.00018799,2]
[330458001,1719431433615,-1100.423532,0.00018799,2]
[330458002,1719431433624,-170.531052,0.00018799,2]
[330458003,1719431433634,-151.0,0.00018799,2]
[330458004,1719431433644,-151.0,0.00018799,2]
[330458005,1719431433654,-574.212934,0.00018799,2]
[330458006,1719431433663,-574.212934,0.00018799,2]
[330458007,1719431433673,-796.196,0.00018799,2]
[330458008,1719431433682,-1830.0,0.00018799,2]
[330458009,1719431433691,-504.024,0.00018799,2]
[330458010,1719431433702,-443.0,0.00018799,2]
[330458011,1719431433711,-448.0,0.00018799,2]
[330458012,1719431433721,-618.0,0.00018799,2]
[330458013,1719431433730,-812.0,0.00018799,2]
[330458014,1719431433740,-1165.837,0.00018799,2]
[330458015,1719431433750,-518.86,0.00018799,2]
[330458016,1719431433760,-535.69,0.00018799,2]
[330458017,1719431433770,-646.854,0.00018799,2]
[330458018,1719431433780,-2379.133,0.00018799,2]
[330458019,1719431433790,-150.0,0.00018799,2]
[330458020,1719431433800,-1069.0,0.00018799,2]
[330458021,1719431433811,-785.8747,0.000189,2]
[330458022,1719431433821,-602.6228,0.000189,2]
[330458023,1719431433831,-1383.0628,0.000189,2]
[330458024,1719431433841,-151.0,0.000189,2]
[330458025,1719431433851,-399.51928,0.000189,2]
[330458026,1719431433860,-399.51928,0.000189,2]
[330458027,1719431433870,-151.0,0.000189,2]
[330458028,1719431433881,-151.0,0.000189,2]
[330458029,1719431433891,-151.0,0.000189,2]
[330458030,1719431433902,-151.0,0.000189,2]
[330458031,1719431433912,-151.0,0.000189,2]
[330458032,1719431433923,-182.486376,0.000189,2]
[330458033,1719431433932,-151.0,0.000189,2]
[330458034,1719431433943,-151.0,0.000189,2]
[330458035,1719431433953,-151.0,0.000189,2]
[330458036,1719431433963,-151.0,0.000189,2]
[330458037,1719431433973,-151.0,0.000189,2]
[330458038,1719431433983,-360.601089,0.000189,2]
[330458039,1719431433994,-360.601089,0.000189,2]
[330458040,1719431434004,-151.0,0.000189,2]
[330458041,1719431434014,-151.0,0.000189,2]
[330458042,1719431434024,-320.687324,0.00018904,2]
[330458043,1719431434035,-364.75419783,0.00018999,2]
[330458044,1719431434045,-378.49941491,0.00018999,2]
[330458045,1719431434055,-660.88004316,0.00018999,2]
[330458046,1719431434065,-208.70095318,0.00018999,2]
[330458047,1719431434075,-155.0,0.00018999,2]
[330458048,1719431434086,-226.97511983,0.00018999,2]
[330458049,1719431434096,-559.19857836,0.00018999,2]
[330458050,1719431434107,-155.0,0.00018999,2]
[330458051,1719431434117,-647.07170086,0.00018999,2]
[330458052,1719431434127,-437.83490328,0.00018999,2]
[330458053,1719431434139,-543.83180554,0.00018999,2]
[330458054,1719431434150,-647.07170086,0.00018999,2]
[330458055,1719431434160,-258.53663412,0.00018999,2]
[330458056,1719431434170,-2864.73454549,0.00019,2]
[330458057,1719431434181,-75386.05276259,0.00019,2]
[330458058,1719431434201,-313.76032203,0.00019,2]
[330458059,1719431434213,-6041.75748108,0.00019,2]
[330458060,1719431434241,-428.32614833,0.00019,2]
[330458061,1719431434254,-438.85799162,0.00019,2]
[330458062,1719431434279,-1010.84700863,0.00019,2]
[330458063,1719431434290,-9755.12931968,0.00019,2]
[330458064,1719431434302,-5775.04816247,0.00019,2]
[330458065,1719431434322,-328.33,0.00019,2]
[330458066,1719431434433,-25605.72422148,0.00019,2]
[330458067,1719431434445,-3071.91999903,0.00019,2]
[330458093,1719431438529,-456.60486029,0.00017331,2]
[330458094,1719431438541,-246.4028553,0.00017331,2]
[330458095,1719431438551,-151.0,0.00018568,2]
[330458096,1719431438562,-151.0,0.00018568,2]
[330458097,1719431438572,-2784.57379438,0.00019,2]
[330458098,1719431438584,-351.92,0.00019,2]
[330458099,1719431438596,-338.44,0.00019,2]
[330458100,1719431438647,-589.98973099,0.00019,2]
[330458101,1719431438659,-1000.0,0.00019,2]
[330458102,1719431438670,-1014.4073902,0.00019,2]
[330458103,1719431438682,-325.06640796,0.00019,2]
[330458104,1719431438694,-3021.85448745,0.00019,2]
[330458106,1719431439777,-226.97511983,0.00018999,2]
[330458107,1719431439788,-321.96891539,0.00019,2]
[330458108,1719431439994,-446.43040658,0.00019,2]
[330458153,1719431443077,-151.0,0.00017593,2]
[330458154,1719431443087,-177.95397176,0.00018,2]
[330458155,1719431443096,-57.59318819,0.00018,2]
[330458156,1719431443108,-120.36078357,0.00018,2]
[330458157,1719431443119,-177.95397176,0.00018,2]
[330458158,1719431443129,-177.95397176,0.00018,2]
[330458159,1719431443141,-89.72651897,0.00018,2]
[330458160,1719431443157,-88.22745279,0.00018,2]
[330458161,1719431443166,-177.95397176,0.00018,2]
[330458162,1719431443175,-177.95397176,0.00018,2]
[330458163,1719431443187,-177.95397176,0.00018,2]
[330458164,1719431443197,-74.56766119,0.00018,2]
[330458165,1719431443208,-103.38631057,0.00018,2]
[330458166,1719431443220,-177.95397176,0.00018,2]
[330458167,1719431443229,-10.76222766,0.00018,2]
[330458192,1719431445760,-167.1917441,0.00018,2]
[330458193,1719431445769,-177.95397176,0.00018,2]
[330458194,1719431445779,-177.95397176,0.00018,2]
[330458195,1719431445788,-177.95397176,0.00018,2]
[330458196,1719431445798,-94.59163035,0.00018,2]
[330458197,1719431445809,-83.36234141,0.00018,2]
[330458198,1719431445819,-177.95397176,0.00018,2]
[330458199,1719431445828,-177.95397176,0.00018,2]
[330458200,1719431445837,-177.95397176,0.00018,2]
[330458201,1719431445846,-177.95397176,0.00018,2]
[330458202,1719431445856,-177.95397176,0.00018,2]
[330458203,1719431445865,-248.59687579,0.00018473,2]
[330458204,1719431445924,-454.4108398,0.00018473,2]
[330458205,1719431445933,-151.0,0.00018533,2]
[330458206,1719431445943,-151.0,0.00018568,2]
[330458207,1719431445951,-939.48916019,0.00019,2]
[330458208,1719431445970,-655.0,0.00019,2]
[330458209,1719431445981,-608.56308,0.00019,2]
[330458210,1719431446016,-177.95397176,0.00018,2]
[330458211,1719431446025,-5801.44997777,0.00019,2]
[330458524,1719432631930,-1496.323505,0.00012345,2]
[330458525,1719432631942,-553.7347311,0.00012345,2]
[330458526,1719432631951,-155.0,0.000139,2]
[330458527,1719432631960,-219.6763,0.000139,2]
[330458528,1719432631970,-194.6344,0.000139,2]
[330458529,1719432631979,-546.62,0.00015593,2]
[330458530,1719432631988,-1338.0,0.000163,2]
[330458531,1719432631997,-150.0,0.00017476,2]
[330458532,1719432632007,-155.36558088,0.00017507,2]
[330458533,1719432632016,-250.0,0.00017508,2]
[330458534,1719432632025,-250.0,0.00017508,2]
[330458535,1719432632035,-208.76,0.00017666,2]
[330458536,1719432632045,-173.41104615,0.00017718,2]
[330458537,1719432632055,-1133.60989333,0.00017777,2]
[330458538,1719432632064,-340.86072488,0.00017778,2]